[Event "Titled Tuesday Blitz October 5 2021"]
[White "Sydoryka, Vladyslav"]
[Black "Lashkin, Jegor"]
[WhiteFideId "14145928"]
[BlackFideId "13907808"]
[WhiteElo "2282"]
[BlackElo "2293"]
[Result "0-1"]
[Round "05"]
[TimeControl "180+1"]
[Date "2021.10.05"]
[WhiteClock "0:00:04"]
[BlackClock "0:00:28"]

1. c4 {[%clk 0:02:40]}  e5 {[%clk 0:02:59]} 2. g3 {[%clk 0:02:40]}  c6 {[%clk 0:02:59]} 3. Nf3 {[%clk 0:02:40]}  e4 {[%clk 0:02:59]} 4. Nd4 {[%clk 0:02:40]}  Nf6 {[%clk 0:02:59]} 5. Bg2 {[%clk 0:02:40]}  Qb6 {[%clk 0:02:59]} 6. Nc2 {[%clk 0:02:39]}  d5 {[%clk 0:02:59]} 7. d3 {[%clk 0:02:39]}  exd3 {[%clk 0:02:55]} 8. Qxd3 {[%clk 0:02:40]}  dxc4 {[%clk 0:02:54]} 9. Qxc4 {[%clk 0:02:41]}  Be6 {[%clk 0:02:54]} 10. Qa4 {[%clk 0:02:34]}  Na6 {[%clk 0:02:52]} 11. Nc3 {[%clk 0:02:29]}  Nc5 {[%clk 0:02:50]} 12. Qf4 {[%clk 0:02:18]}  Be7 {[%clk 0:02:47]} 13. O-O {[%clk 0:02:17]}  O-O {[%clk 0:02:47]} 14. Nd4 {[%clk 0:02:13]}  Rad8 {[%clk 0:02:41]} 15. Nxe6 {[%clk 0:01:32]}  Nxe6 {[%clk 0:02:42]} 16. Qa4 {[%clk 0:01:32]}  Bc5 {[%clk 0:02:29]} 17. e3 {[%clk 0:01:10]}  h5 {[%clk 0:02:08]} 18. a3 {[%clk 0:00:57]}  Be7 {[%clk 0:02:00]} 19. b4 {[%clk 0:00:39]}  Ng4 {[%clk 0:01:59]} 20. Ne4 {[%clk 0:00:34]}  Nf6 {[%clk 0:01:43]} 21. Bb2 {[%clk 0:00:31]}  Nxe4 {[%clk 0:01:41]} 22. Bxe4 {[%clk 0:00:32]}  a6 {[%clk 0:01:20]} 23. Qc2 {[%clk 0:00:30]}  c5 {[%clk 0:01:08]} 24. bxc5 {[%clk 0:00:20]}  Nxc5 {[%clk 0:01:05]} 25. Bg2 {[%clk 0:00:20]}  Qe6 {[%clk 0:00:56]} 26. Rab1 {[%clk 0:00:19]}  b6 {[%clk 0:00:51]} 27. Bd4 {[%clk 0:00:19]}  h4 {[%clk 0:00:45]} 28. Qb2 {[%clk 0:00:19]}  h3 {[%clk 0:00:41]} 29. Bh1 {[%clk 0:00:16]}  Na4 {[%clk 0:00:34]} 30. Qc2 {[%clk 0:00:14]}  b5 {[%clk 0:00:30]} 31. Bf3 {[%clk 0:00:05]}  Bf6 {[%clk 0:00:28]} 32. Bxf6 {[%clk 0:00:05]}  Qxf6 {[%clk 0:00:29]} 33. Rfd1 {[%clk 0:00:04]}  Qxf3 {[%clk 0:00:28]} 0-1


[Site "https://www.chess.com"]

[Event "Titled Tuesday Blitz October 5 2021"]
[White "Timmermans, Mark"]
[Black "Holt, Conrad"]
[WhiteFideId "1026399"]
[BlackFideId "2034387"]
[WhiteElo "2460"]
[BlackElo "2586"]
[Result "1/2-1/2"]
[Round "05"]
[TimeControl "180+1"]
[Date "2021.10.05"]
[WhiteClock "0:00:06"]
[BlackClock "0:00:04"]

1. b4 {[%clk 0:03:00]}  d5 {[%clk 0:02:56]} 2. Bb2 {[%clk 0:03:01]}  Bg4 {[%clk 0:02:55]} 3. Nf3 {[%clk 0:03:01]}  e6 {[%clk 0:02:53]} 4. e3 {[%clk 0:03:00]}  Nd7 {[%clk 0:02:50]} 5. Be2 {[%clk 0:02:57]}  Ngf6 {[%clk 0:02:47]} 6. b5 {[%clk 0:02:58]}  Bd6 {[%clk 0:02:46]} 7. O-O {[%clk 0:02:57]}  e5 {[%clk 0:02:40]} 8. d4 {[%clk 0:02:53]}  Bxf3 {[%clk 0:02:36]} 9. Bxf3 {[%clk 0:02:53]}  e4 {[%clk 0:02:37]} 10. Be2 {[%clk 0:02:53]}  h5 {[%clk 0:02:32]} 11. h3 {[%clk 0:02:36]}  Nb6 {[%clk 0:02:29]} 12. a4 {[%clk 0:02:34]}  Qd7 {[%clk 0:02:05]} 13. Ba3 {[%clk 0:02:32]}  Rh6 {[%clk 0:01:39]} 14. Bxd6 {[%clk 0:02:30]}  cxd6 {[%clk 0:01:38]} 15. Nd2 {[%clk 0:02:28]}  Rc8 {[%clk 0:01:33]} 16. a5 {[%clk 0:02:19]}  Nc4 {[%clk 0:01:32]} 17. Nxc4 {[%clk 0:02:20]}  dxc4 {[%clk 0:01:32]} 18. b6 {[%clk 0:02:21]}  axb6 {[%clk 0:01:28]} 19. axb6 {[%clk 0:02:22]}  d5 {[%clk 0:01:29]} 20. Ra5 {[%clk 0:02:16]}  Qd6 {[%clk 0:01:13]} 21. c3 {[%clk 0:02:04]}  Kf8 {[%clk 0:01:06]} 22. Qa1 {[%clk 0:01:53]}  Kg8 {[%clk 0:01:01]} 23. Ra8 {[%clk 0:01:52]}  Qd8 {[%clk 0:00:52]} 24. Rxc8 {[%clk 0:01:50]}  Qxc8 {[%clk 0:00:53]} 25. Qa5 {[%clk 0:01:50]}  Rg6 {[%clk 0:00:49]} 26. Kh1 {[%clk 0:01:44]}  Rg5 {[%clk 0:00:44]} 27. Ra1 {[%clk 0:01:12]}  Kh7 {[%clk 0:00:35]} 28. Qc5 {[%clk 0:00:43]}  Qf5 {[%clk 0:00:34]} 29. f4 {[%clk 0:00:19]}  Rg3 {[%clk 0:00:27]} 30. Bf1 {[%clk 0:00:18]}  Rxe3 {[%clk 0:00:24]} 31. Qc7 {[%clk 0:00:18]}  Rxc3 {[%clk 0:00:19]} 32. Qxb7 {[%clk 0:00:18]}  e3 {[%clk 0:00:18]} 33. Qxf7 {[%clk 0:00:15]}  Rb3 {[%clk 0:00:16]} 34. b7 {[%clk 0:00:15]}  Qxf4 {[%clk 0:00:14]} 35. Be2 {[%clk 0:00:16]}  Rb2 {[%clk 0:00:12]} 36. Bxh5 {[%clk 0:00:15]}  Qg5 {[%clk 0:00:10]} 37. Bf3 {[%clk 0:00:14]}  Ne4 {[%clk 0:00:10]} 38. Qc7 {[%clk 0:00:09]}  e2 {[%clk 0:00:09]} 39. b8=Q {[%clk 0:00:08]}  Rxb8 {[%clk 0:00:08]} 40. Qxb8 {[%clk 0:00:09]}  Qe3 {[%clk 0:00:05]} 41. Bxe4+ {[%clk 0:00:07]}  Qxe4 {[%clk 0:00:05]} 42. Qg3 {[%clk 0:00:07]}  Qxd4 {[%clk 0:00:04]} 43. Re1 {[%clk 0:00:07]}  c3 {[%clk 0:00:04]} 44. Rxe2 {[%clk 0:00:07]}  Qd1+ {[%clk 0:00:03]} 45. Re1 {[%clk 0:00:04]}  c2 {[%clk 0:00:04]} 46. Qe3 {[%clk 0:00:04]}  d4 {[%clk 0:00:04]} 47. Qe4+ {[%clk 0:00:04]}  Kh8 {[%clk 0:00:03]} 48. Qe8+ {[%clk 0:00:04]}  Kh7 {[%clk 0:00:03]} 49. Qe4+ {[%clk 0:00:05]}  Kh8 {[%clk 0:00:04]} 50. Qe8+ {[%clk 0:00:06]}  Kh7 {[%clk 0:00:04]} 51. Qe4+ {[%clk 0:00:06]} 1/2-1/2


[Site "https://www.chess.com"]

[Event "Titled Tuesday Blitz October 5 2021"]
[White "Tristan, Leonardo"]
[Black "Gabrielian, Artur"]
[WhiteFideId "113816"]
[BlackFideId "4131002"]
[WhiteElo "2404"]
[BlackElo "2489"]
[Result "0-1"]
[Round "05"]
[TimeControl "180+1"]
[Date "2021.10.05"]
[WhiteClock "0:00:07"]
[BlackClock "0:00:16"]

1. d4 {[%clk 0:03:00]}  Nf6 {[%clk 0:02:59]} 2. Nf3 {[%clk 0:03:00]}  g6 {[%clk 0:02:59]} 3. Bf4 {[%clk 0:03:01]}  Bg7 {[%clk 0:02:59]} 4. e3 {[%clk 0:03:01]}  O-O {[%clk 0:03:00]} 5. Be2 {[%clk 0:03:02]}  d6 {[%clk 0:03:00]} 6. O-O {[%clk 0:03:02]}  b6 {[%clk 0:03:00]} 7. h3 {[%clk 0:03:03]}  Bb7 {[%clk 0:03:01]} 8. Nh2 {[%clk 0:03:03]}  Nbd7 {[%clk 0:02:57]} 9. Nf3 {[%clk 0:03:03]}  Qe8 {[%clk 0:02:56]} 10. Bh2 {[%clk 0:03:03]}  e5 {[%clk 0:02:55]} 11. c3 {[%clk 0:03:03]}  Qe7 {[%clk 0:02:49]} 12. Nbd2 {[%clk 0:03:03]}  e4 {[%clk 0:02:48]} 13. Ne1 {[%clk 0:03:03]}  Ne8 {[%clk 0:02:48]} 14. a4 {[%clk 0:03:03]}  a6 {[%clk 0:02:48]} 15. Qb3 {[%clk 0:03:00]}  Kh8 {[%clk 0:02:45]} 16. a5 {[%clk 0:02:57]}  f5 {[%clk 0:02:33]} 17. axb6 {[%clk 0:02:57]}  Nxb6 {[%clk 0:02:33]} 18. Ra5 {[%clk 0:02:47]}  Nf6 {[%clk 0:02:29]} 19. Nc2 {[%clk 0:02:46]}  g5 {[%clk 0:02:25]} 20. Rxf5 {[%clk 0:02:43]}  h6 {[%clk 0:02:19]} 21. Ra5 {[%clk 0:02:35]}  Bd5 {[%clk 0:02:12]} 22. c4 {[%clk 0:02:33]}  Bg8 {[%clk 0:02:12]} 23. Rfa1 {[%clk 0:02:29]}  Qf7 {[%clk 0:02:12]} 24. Bg3 {[%clk 0:02:04]}  Nh5 {[%clk 0:02:09]} 25. Bxh5 {[%clk 0:01:43]}  Qxh5 {[%clk 0:02:09]} 26. Qc3 {[%clk 0:01:41]}  Qe2 {[%clk 0:01:58]} 27. Re1 {[%clk 0:01:40]}  Qd3 {[%clk 0:01:59]} 28. Qxd3 {[%clk 0:01:13]}  exd3 {[%clk 0:01:58]} 29. Nb4 {[%clk 0:01:14]}  Nxc4 {[%clk 0:01:56]} 30. Nxc4 {[%clk 0:01:14]}  Bxc4 {[%clk 0:01:56]} 31. Rd1 {[%clk 0:00:49]}  Rab8 {[%clk 0:01:26]} 32. Nxd3 {[%clk 0:00:50]}  Rb3 {[%clk 0:01:26]} 33. Ra3 {[%clk 0:00:46]}  Rfb8 {[%clk 0:01:25]} 34. Kh2 {[%clk 0:00:31]}  Rxa3 {[%clk 0:01:25]} 35. bxa3 {[%clk 0:00:30]}  Rb3 {[%clk 0:01:25]} 36. Nb4 {[%clk 0:00:27]}  a5 {[%clk 0:01:17]} 37. Nc6 {[%clk 0:00:27]}  Bd5 {[%clk 0:01:05]} 38. Rc1 {[%clk 0:00:22]}  Rxa3 {[%clk 0:00:56]} 39. Ne7 {[%clk 0:00:23]}  Be4 {[%clk 0:00:42]} 40. Rxc7 {[%clk 0:00:22]}  Ra2 {[%clk 0:00:42]} 41. Nc8 {[%clk 0:00:07]}  d5 {[%clk 0:00:42]} 42. Nd6 {[%clk 0:00:07]}  Bg6 {[%clk 0:00:42]} 43. Rc8+ {[%clk 0:00:05]}  Kh7 {[%clk 0:00:42]} 44. Rc7 {[%clk 0:00:06]}  Kg8 {[%clk 0:00:39]} 45. Ra7 {[%clk 0:00:04]}  h5 {[%clk 0:00:37]} 46. Ra8+ {[%clk 0:00:03]}  Kh7 {[%clk 0:00:37]} 47. Ra7 {[%clk 0:00:04]}  Kg8 {[%clk 0:00:36]} 48. h4 {[%clk 0:00:05]}  gxh4 {[%clk 0:00:33]} 49. Bxh4 {[%clk 0:00:06]}  Bf8 {[%clk 0:00:33]} 50. Nc8 {[%clk 0:00:04]}  a4 {[%clk 0:00:29]} 51. Ne7+ {[%clk 0:00:05]}  Bxe7 {[%clk 0:00:29]} 52. Rxe7 {[%clk 0:00:05]}  a3 {[%clk 0:00:25]} 53. Ra7 {[%clk 0:00:05]}  Ra1 {[%clk 0:00:22]} 54. Kg3 {[%clk 0:00:06]}  Be4 {[%clk 0:00:20]} 55. f3 {[%clk 0:00:04]}  Bd3 {[%clk 0:00:20]} 56. Kf4 {[%clk 0:00:04]}  a2 {[%clk 0:00:19]} 57. Ke5 {[%clk 0:00:03]}  Bc4 {[%clk 0:00:20]} 58. e4 {[%clk 0:00:03]}  Rg1 {[%clk 0:00:18]} 59. exd5 {[%clk 0:00:02]}  a1=Q {[%clk 0:00:18]} 60. Rxa1 {[%clk 0:00:03]}  Rxa1 {[%clk 0:00:18]} 61. d6 {[%clk 0:00:04]}  Bb5 {[%clk 0:00:17]} 62. Ke6 {[%clk 0:00:03]}  Ra7 {[%clk 0:00:17]} 63. Be7 {[%clk 0:00:03]}  Bd7+ {[%clk 0:00:17]} 64. Kf6 {[%clk 0:00:03]}  Ra5 {[%clk 0:00:17]} 65. f4 {[%clk 0:00:03]}  Rf5+ {[%clk 0:00:17]} 66. Kg6 {[%clk 0:00:04]}  Rxf4 {[%clk 0:00:17]} 67. Kxh5 {[%clk 0:00:04]}  Rxd4 {[%clk 0:00:18]} 68. g3 {[%clk 0:00:04]}  Kf7 {[%clk 0:00:17]} 69. Kg5 {[%clk 0:00:03]}  Rg4+ {[%clk 0:00:17]} 70. Kh5 {[%clk 0:00:04]}  Rxg3 {[%clk 0:00:18]} 71. Bh4 {[%clk 0:00:05]}  Rg4 {[%clk 0:00:17]} 72. Bg5 {[%clk 0:00:06]}  Rd4 {[%clk 0:00:17]} 73. Bh4 {[%clk 0:00:06]}  Rxd6 {[%clk 0:00:16]} 74. Bg5 {[%clk 0:00:07]}  Rd5 {[%clk 0:00:16]} 75. Kh6 {[%clk 0:00:07]}  Bg4 {[%clk 0:00:16]} 0-1


[Site "https://www.chess.com"]

[Event "Titled Tuesday Blitz October 5 2021"]
[White "Viani Antonio Dcunha"]
[Black "Goltsev, Dmitry"]
[WhiteFideId "5027330"]
[BlackFideId "24176710"]
[WhiteElo "2366"]
[BlackElo "2334"]
[Result "1/2-1/2"]
[Round "05"]
[TimeControl "180+1"]
[Date "2021.10.05"]
[WhiteClock "0:00:13"]
[BlackClock "0:00:53"]

1. e4 {[%clk 0:03:00]}  e6 {[%clk 0:02:59]} 2. d4 {[%clk 0:02:59]}  d5 {[%clk 0:03:00]} 3. Nc3 {[%clk 0:02:59]}  Nf6 {[%clk 0:02:59]} 4. e5 {[%clk 0:02:59]}  Nfd7 {[%clk 0:02:59]} 5. f4 {[%clk 0:02:59]}  c5 {[%clk 0:03:00]} 6. Nf3 {[%clk 0:02:59]}  Nc6 {[%clk 0:03:01]} 7. Ne2 {[%clk 0:02:58]}  a6 {[%clk 0:02:59]} 8. g3 {[%clk 0:02:57]}  b5 {[%clk 0:03:00]} 9. Bh3 {[%clk 0:02:55]}  Qb6 {[%clk 0:02:59]} 10. c3 {[%clk 0:02:53]}  cxd4 {[%clk 0:02:59]} 11. cxd4 {[%clk 0:02:52]}  g6 {[%clk 0:03:00]} 12. O-O {[%clk 0:02:48]}  Bb7 {[%clk 0:02:57]} 13. Be3 {[%clk 0:02:43]}  Na5 {[%clk 0:02:55]} 14. b3 {[%clk 0:02:42]}  Rc8 {[%clk 0:02:53]} 15. Qd2 {[%clk 0:02:39]}  Ba3 {[%clk 0:02:50]} 16. Qd3 {[%clk 0:02:10]}  Nc6 {[%clk 0:02:49]} 17. Bc1 {[%clk 0:02:01]}  Nb4 {[%clk 0:02:48]} 18. Qd1 {[%clk 0:02:00]}  Bxc1 {[%clk 0:02:35]} 19. Rxc1 {[%clk 0:02:01]}  Ke7 {[%clk 0:02:34]} 20. Qd2 {[%clk 0:01:58]}  a5 {[%clk 0:02:30]} 21. a3 {[%clk 0:01:51]}  Na6 {[%clk 0:02:26]} 22. g4 {[%clk 0:01:47]}  h5 {[%clk 0:02:21]} 23. f5 {[%clk 0:01:46]}  hxg4 {[%clk 0:02:19]} 24. Qg5+ {[%clk 0:01:38]}  Ke8 {[%clk 0:02:17]} 25. fxe6 {[%clk 0:01:35]}  Qxe6 {[%clk 0:02:12]} 26. Bxg4 {[%clk 0:01:35]}  Qe7 {[%clk 0:02:13]} 27. Qxe7+ {[%clk 0:01:28]}  Kxe7 {[%clk 0:02:13]} 28. Bxd7 {[%clk 0:01:26]}  Kxd7 {[%clk 0:02:14]} 29. Ng5 {[%clk 0:01:27]}  Rxc1 {[%clk 0:02:14]} 30. Nxc1 {[%clk 0:01:27]}  Rf8 {[%clk 0:02:07]} 31. e6+ {[%clk 0:01:23]}  Ke7 {[%clk 0:01:40]} 32. Rxf7+ {[%clk 0:01:15]}  Rxf7 {[%clk 0:01:37]} 33. exf7 {[%clk 0:01:16]}  Nb8 {[%clk 0:01:33]} 34. Nd3 {[%clk 0:01:04]}  Nd7 {[%clk 0:01:30]} 35. b4 {[%clk 0:00:58]}  axb4 {[%clk 0:01:29]} 36. axb4 {[%clk 0:00:58]}  Kf6 {[%clk 0:01:17]} 37. h4 {[%clk 0:00:56]}  Nf8 {[%clk 0:01:15]} 38. Ne5 {[%clk 0:00:52]}  Bc8 {[%clk 0:01:13]} 39. Kf2 {[%clk 0:00:51]}  Be6 {[%clk 0:01:11]} 40. Kf3 {[%clk 0:00:44]}  Bf5 {[%clk 0:01:08]} 41. Kf4 {[%clk 0:00:43]}  Be6 {[%clk 0:01:07]} 42. Nxe6 {[%clk 0:00:37]}  Nxe6+ {[%clk 0:01:06]} 43. Kg4 {[%clk 0:00:37]}  Kg7 {[%clk 0:01:02]} 44. Nf3 {[%clk 0:00:28]}  Kxf7 {[%clk 0:01:00]} 45. Ng5+ {[%clk 0:00:28]}  Kf6 {[%clk 0:00:51]} 46. Nxe6 {[%clk 0:00:22]}  Kxe6 {[%clk 0:00:52]} 47. Kg5 {[%clk 0:00:20]}  Kf7 {[%clk 0:00:52]} 48. h5 {[%clk 0:00:10]}  gxh5 {[%clk 0:00:53]} 49. Kxh5 {[%clk 0:00:10]}  Kf6 {[%clk 0:00:52]} 50. Kg4 {[%clk 0:00:11]}  Kg6 {[%clk 0:00:52]} 51. Kf4 {[%clk 0:00:11]}  Kf6 {[%clk 0:00:53]} 52. Kg4 {[%clk 0:00:12]}  Kg6 {[%clk 0:00:53]} 53. Kf4 {[%clk 0:00:12]}  Kf6 {[%clk 0:00:53]} 54. Kg4 {[%clk 0:00:13]} 1/2-1/2


[Site "https://www.chess.com"]

[Event "Titled Tuesday Blitz October 5 2021"]
[White "Vlachos, Anatole"]
[Black "Mustafayev, Farid"]
[WhiteFideId "26093189"]
[BlackFideId "13408771"]
[WhiteElo "2350"]
[BlackElo "2091"]
[Result "1-0"]
[Round "05"]
[TimeControl "180+1"]
[Date "2021.10.05"]
[WhiteClock "0:01:05"]
[BlackClock "0:02:02"]

1. Nf3 {[%clk 0:03:00]}  Nf6 {[%clk 0:02:59]} 2. g3 {[%clk 0:03:01]}  g6 {[%clk 0:02:57]} 3. Bg2 {[%clk 0:03:02]}  Bg7 {[%clk 0:02:53]} 4. O-O {[%clk 0:03:02]}  O-O {[%clk 0:02:53]} 5. d4 {[%clk 0:03:00]}  d5 {[%clk 0:02:52]} 6. Nc3 {[%clk 0:02:59]}  c5 {[%clk 0:02:52]} 7. dxc5 {[%clk 0:02:53]}  Nc6 {[%clk 0:02:51]} 8. e4 {[%clk 0:02:49]}  d4 {[%clk 0:02:50]} 9. Nb5 {[%clk 0:02:45]}  e5 {[%clk 0:02:50]} 10. Bg5 {[%clk 0:02:41]}  h6 {[%clk 0:02:46]} 11. Bxf6 {[%clk 0:02:41]}  Qxf6 {[%clk 0:02:47]} 12. c3 {[%clk 0:02:36]}  a6 {[%clk 0:02:46]} 13. Na3 {[%clk 0:02:36]}  Qe7 {[%clk 0:02:45]} 14. cxd4 {[%clk 0:02:35]}  exd4 {[%clk 0:02:46]} 15. Rc1 {[%clk 0:02:35]}  Qxe4 {[%clk 0:02:46]} 16. Nc4 {[%clk 0:02:33]}  d3 {[%clk 0:02:35]} 17. Nd6 {[%clk 0:02:31]}  Qe2 {[%clk 0:02:33]} 18. Qxe2 {[%clk 0:02:26]}  dxe2 {[%clk 0:02:34]} 19. Rfe1 {[%clk 0:02:26]}  Bxb2 {[%clk 0:02:32]} 20. Rb1 {[%clk 0:02:16]}  Bf6 {[%clk 0:02:31]} 21. Nxc8 {[%clk 0:02:10]}  Raxc8 {[%clk 0:02:32]} 22. Rxe2 {[%clk 0:02:09]}  Rfe8 {[%clk 0:02:27]} 23. Rxe8+ {[%clk 0:02:07]}  Rxe8 {[%clk 0:02:28]} 24. Rxb7 {[%clk 0:02:08]}  Re2 {[%clk 0:02:20]} 25. Rb6 {[%clk 0:02:07]}  Re6 {[%clk 0:02:16]} 26. Rxa6 {[%clk 0:01:52]}  Be7 {[%clk 0:02:16]} 27. Nd2 {[%clk 0:01:40]}  Re1+ {[%clk 0:02:13]} 28. Nf1 {[%clk 0:01:40]}  Nd4 {[%clk 0:02:11]} 29. c6 {[%clk 0:01:36]}  Rc1 {[%clk 0:02:11]} 30. h3 {[%clk 0:01:21]}  Kg7 {[%clk 0:02:08]} 31. Kh2 {[%clk 0:01:16]}  Rc2 {[%clk 0:02:05]} 32. Ne3 {[%clk 0:01:12]}  Rxf2 {[%clk 0:02:05]} 33. c7 {[%clk 0:01:10]}  Re2 {[%clk 0:02:02]} 34. c8=Q {[%clk 0:01:05]} 1-0


[Site "https://www.chess.com"]

[Event "Titled Tuesday Blitz October 5 2021"]
[White "Weetik, Vjacheslav"]
[Black "Wagner, Dennis"]
[WhiteFideId "4153472"]
[BlackFideId "24650684"]
[WhiteElo "2469"]
[BlackElo "2355"]
[Result "0-1"]
[Round "05"]
[TimeControl "180+1"]
[Date "2021.10.05"]
[WhiteClock "0:00:04"]
[BlackClock "0:00:21"]

1. d4 {[%clk 0:03:00]}  Nf6 {[%clk 0:02:54]} 2. Bf4 {[%clk 0:03:00]}  d5 {[%clk 0:02:54]} 3. e3 {[%clk 0:03:01]}  Bf5 {[%clk 0:02:54]} 4. c4 {[%clk 0:03:01]}  e6 {[%clk 0:02:54]} 5. Nc3 {[%clk 0:03:01]}  Bb4 {[%clk 0:02:49]} 6. Qb3 {[%clk 0:02:54]}  Nc6 {[%clk 0:02:49]} 7. Nf3 {[%clk 0:02:42]}  Ne4 {[%clk 0:02:45]} 8. cxd5 {[%clk 0:02:21]}  exd5 {[%clk 0:01:56]} 9. Bb5 {[%clk 0:02:16]}  O-O {[%clk 0:01:48]} 10. O-O {[%clk 0:02:08]}  Bxc3 {[%clk 0:01:43]} 11. bxc3 {[%clk 0:02:04]}  Na5 {[%clk 0:01:43]} 12. Qa3 {[%clk 0:01:47]}  c6 {[%clk 0:01:43]} 13. Be2 {[%clk 0:01:46]}  f6 {[%clk 0:01:29]} 14. Rfc1 {[%clk 0:01:28]}  b5 {[%clk 0:01:28]} 15. h3 {[%clk 0:01:11]}  Re8 {[%clk 0:01:22]} 16. Qb2 {[%clk 0:01:05]}  Qe7 {[%clk 0:00:42]} 17. Nd2 {[%clk 0:00:56]}  Nxd2 {[%clk 0:00:36]} 18. Qxd2 {[%clk 0:00:56]}  Nc4 {[%clk 0:00:25]} 19. Bxc4 {[%clk 0:00:27]}  bxc4 {[%clk 0:00:26]} 20. a4 {[%clk 0:00:22]}  a5 {[%clk 0:00:25]} 21. Ra2 {[%clk 0:00:21]}  Ra7 {[%clk 0:00:25]} 22. Rb2 {[%clk 0:00:20]}  Rb7 {[%clk 0:00:26]} 23. Bg3 {[%clk 0:00:16]}  Ra8 {[%clk 0:00:24]} 24. Rxb7 {[%clk 0:00:14]}  Qxb7 {[%clk 0:00:24]} 25. f3 {[%clk 0:00:15]}  Bd3 {[%clk 0:00:24]} 26. Re1 {[%clk 0:00:09]}  Re8 {[%clk 0:00:24]} 27. Kh2 {[%clk 0:00:09]}  h5 {[%clk 0:00:24]} 28. h4 {[%clk 0:00:09]}  Qb3 {[%clk 0:00:23]} 29. Ra1 {[%clk 0:00:03]}  Kh7 {[%clk 0:00:23]} 30. Ra2 {[%clk 0:00:04]}  Re7 {[%clk 0:00:23]} 31. Bf4 {[%clk 0:00:04]}  Rb7 {[%clk 0:00:23]} 32. Ra1 {[%clk 0:00:03]}  Bb1 {[%clk 0:00:20]} 33. e4 {[%clk 0:00:02]}  dxe4 {[%clk 0:00:19]} 34. fxe4 {[%clk 0:00:03]}  Bxe4 {[%clk 0:00:20]} 35. Re1 {[%clk 0:00:04]}  Bd5 {[%clk 0:00:19]} 36. Bd6 {[%clk 0:00:03]}  Qb2 {[%clk 0:00:19]} 37. Re2 {[%clk 0:00:03]}  Qxd2 {[%clk 0:00:18]} 38. Rxd2 {[%clk 0:00:04]}  Rb1 {[%clk 0:00:19]} 39. Bc7 {[%clk 0:00:04]}  Ra1 {[%clk 0:00:18]} 40. Bxa5 {[%clk 0:00:04]}  Rxa4 {[%clk 0:00:19]} 41. Bb4 {[%clk 0:00:05]}  Ra1 {[%clk 0:00:20]} 42. Rf2 {[%clk 0:00:05]}  Re1 {[%clk 0:00:20]} 43. Rd2 {[%clk 0:00:05]}  Re4 {[%clk 0:00:20]} 44. Kh3 {[%clk 0:00:04]}  Kg6 {[%clk 0:00:21]} 45. Kg3 {[%clk 0:00:04]}  Rg4+ {[%clk 0:00:21]} 46. Kh3 {[%clk 0:00:04]}  Be6 {[%clk 0:00:21]} 47. Kh2 {[%clk 0:00:04]}  Rxh4+ {[%clk 0:00:21]} 48. Kg3 {[%clk 0:00:04]}  Re4 {[%clk 0:00:22]} 49. Kf3 {[%clk 0:00:04]}  Bd5 {[%clk 0:00:22]} 50. Kf2 {[%clk 0:00:05]}  Kf5 {[%clk 0:00:22]} 51. Bd6 {[%clk 0:00:05]}  g5 {[%clk 0:00:22]} 52. Bc7 {[%clk 0:00:06]}  h4 {[%clk 0:00:22]} 53. Kg1 {[%clk 0:00:06]}  Re1+ {[%clk 0:00:21]} 54. Kf2 {[%clk 0:00:07]}  Rh1 {[%clk 0:00:22]} 55. Bd8 {[%clk 0:00:06]}  Rc1 {[%clk 0:00:21]} 56. Ba5 {[%clk 0:00:06]}  Kg4 {[%clk 0:00:20]} 57. Bd8 {[%clk 0:00:06]}  f5 {[%clk 0:00:21]} 58. Ba5 {[%clk 0:00:04]}  f4 {[%clk 0:00:21]} 0-1


[Site "https://www.chess.com"]

[Event "Titled Tuesday Blitz October 5 2021"]
[White "Zhigalko, Sergei"]
[Black "Gelman, Alexander"]
[WhiteFideId "13502956"]
[BlackFideId "4118316"]
[WhiteElo "2662"]
[BlackElo "2375"]
[Result "1-0"]
[Round "05"]
[TimeControl "180+1"]
[Date "2021.10.05"]
[WhiteClock "0:00:21"]
[BlackClock "0:00:05"]

1. e4 {[%clk 0:03:00]}  c5 {[%clk 0:02:59]} 2. Nf3 {[%clk 0:03:00]}  e6 {[%clk 0:02:59]} 3. c3 {[%clk 0:02:58]}  d5 {[%clk 0:02:59]} 4. e5 {[%clk 0:02:58]}  Nc6 {[%clk 0:02:59]} 5. d4 {[%clk 0:02:58]}  Bd7 {[%clk 0:02:59]} 6. Be2 {[%clk 0:02:56]}  f6 {[%clk 0:02:58]} 7. O-O {[%clk 0:02:56]}  fxe5 {[%clk 0:02:58]} 8. dxe5 {[%clk 0:02:53]}  Be7 {[%clk 0:02:44]} 9. c4 {[%clk 0:02:46]}  d4 {[%clk 0:02:43]} 10. Bd3 {[%clk 0:02:45]}  Nh6 {[%clk 0:02:11]} 11. Re1 {[%clk 0:02:21]}  Nf7 {[%clk 0:02:05]} 12. Nbd2 {[%clk 0:02:12]}  g5 {[%clk 0:01:56]} 13. h3 {[%clk 0:02:05]}  Qc7 {[%clk 0:01:46]} 14. Ne4 {[%clk 0:02:05]}  Rg8 {[%clk 0:01:35]} 15. Nfxg5 {[%clk 0:01:51]}  Nxg5 {[%clk 0:01:20]} 16. Bxg5 {[%clk 0:01:47]}  O-O-O {[%clk 0:00:51]} 17. Bxe7 {[%clk 0:01:28]}  Nxe7 {[%clk 0:00:51]} 18. Nf6 {[%clk 0:01:28]}  Rg7 {[%clk 0:00:46]} 19. Qh5 {[%clk 0:01:10]}  Bc6 {[%clk 0:00:44]} 20. Be4 {[%clk 0:01:10]}  Bxe4 {[%clk 0:00:29]} 21. Rxe4 {[%clk 0:01:09]}  d3 {[%clk 0:00:28]} 22. Rd1 {[%clk 0:00:37]}  Qc6 {[%clk 0:00:22]} 23. Qf3 {[%clk 0:00:30]}  Nf5 {[%clk 0:00:18]} 24. Rxd3 {[%clk 0:00:26]}  Rxd3 {[%clk 0:00:07]} 25. Qxd3 {[%clk 0:00:26]}  Nd4 {[%clk 0:00:05]} 26. Rg4 {[%clk 0:00:21]} 1-0


[Site "https://www.chess.com"]

[Event "Titled Tuesday Blitz October 5 2021"]
[White "Aditya Mittal"]
[Black "Przybylski, Wojciech"]
[WhiteFideId "35042025"]
[BlackFideId "1117599"]
[WhiteElo "2245"]
[BlackElo "2247"]
[Result "1-0"]
[Round "06"]
[TimeControl "180+1"]
[Date "2021.10.05"]
[WhiteClock "0:02:14"]
[BlackClock "0:01:35"]

1. c4 {[%clk 0:03:00]}  Nf6 {[%clk 0:02:59]} 2. Nc3 {[%clk 0:03:01]}  e6 {[%clk 0:02:58]} 3. Nf3 {[%clk 0:02:57]}  d5 {[%clk 0:02:58]} 4. e3 {[%clk 0:02:57]}  Be7 {[%clk 0:02:57]} 5. b3 {[%clk 0:02:57]}  O-O {[%clk 0:02:57]} 6. Bb2 {[%clk 0:02:57]}  c5 {[%clk 0:02:56]} 7. cxd5 {[%clk 0:02:57]}  exd5 {[%clk 0:02:55]} 8. d4 {[%clk 0:02:57]}  Nc6 {[%clk 0:02:53]} 9. Be2 {[%clk 0:02:55]}  Bf5 {[%clk 0:02:51]} 10. O-O {[%clk 0:02:54]}  b6 {[%clk 0:02:49]} 11. Rc1 {[%clk 0:02:54]}  Rc8 {[%clk 0:02:49]} 12. Ne5 {[%clk 0:02:49]}  cxd4 {[%clk 0:02:36]} 13. Nxc6 {[%clk 0:02:48]}  Rxc6 {[%clk 0:02:36]} 14. Qxd4 {[%clk 0:02:49]}  Re8 {[%clk 0:02:26]} 15. Bb5 {[%clk 0:02:46]}  Bc5 {[%clk 0:02:25]} 16. Qf4 {[%clk 0:02:39]}  Bd7 {[%clk 0:02:19]} 17. Bxc6 {[%clk 0:02:30]}  Bxc6 {[%clk 0:02:20]} 18. Na4 {[%clk 0:02:25]}  Re4 {[%clk 0:02:03]} 19. Bxf6 {[%clk 0:02:23]}  gxf6 {[%clk 0:02:04]} 20. Qg3+ {[%clk 0:02:21]}  Kh8 {[%clk 0:01:55]} 21. Nxc5 {[%clk 0:02:20]}  bxc5 {[%clk 0:01:56]} 22. Rxc5 {[%clk 0:02:20]}  Bb7 {[%clk 0:01:53]} 23. Qc7 {[%clk 0:02:16]}  Qa8 {[%clk 0:01:39]} 24. Qxf7 {[%clk 0:02:15]}  d4 {[%clk 0:01:36]} 25. Qxf6+ {[%clk 0:02:13]}  Kg8 {[%clk 0:01:35]} 26. Rg5# {[%clk 0:02:14]} 1-0


[Site "https://www.chess.com"]